[Event "Titled Tuesday Blitz January 17 Early 2023"]
[White "Zhigalko, Sergei"]
[Black "Starozhilov, Leonid"]
[WhiteFideId "13502956"]
[BlackFideId "14106752"]
[WhiteElo "2572"]
[BlackElo "2313"]
[Result "1-0"]
[Round "06"]
[TimeControl "180+2"]
[Date "2023.01.17"]
[WhiteClock "0:00:07"]
[BlackClock "0:00:02"]

1. e4 {[%clk 0:03:00]}  Nc6 {[%clk 0:02:59]} 2. Nf3 {[%clk 0:03:01]}  d6 {[%clk 0:03:00]} 3. d4 {[%clk 0:03:01]}  Nf6 {[%clk 0:03:01]} 4. Nc3 {[%clk 0:03:01]}  g6 {[%clk 0:03:01]} 5. Bb5 {[%clk 0:03:00]}  a6 {[%clk 0:03:00]} 6. Bxc6+ {[%clk 0:03:00]}  bxc6 {[%clk 0:03:00]} 7. h3 {[%clk 0:03:00]}  Bg7 {[%clk 0:03:00]} 8. O-O {[%clk 0:03:00]}  O-O {[%clk 0:03:00]} 9. Re1 {[%clk 0:03:00]}  Nd7 {[%clk 0:03:01]} 10. e5 {[%clk 0:02:39]}  c5 {[%clk 0:02:41]} 11. Bg5 {[%clk 0:02:39]}  f6 {[%clk 0:02:31]} 12. exf6 {[%clk 0:02:37]}  exf6 {[%clk 0:02:32]} 13. dxc5 {[%clk 0:02:25]}  Bb7 {[%clk 0:02:04]} 14. Be3 {[%clk 0:02:03]}  dxc5 {[%clk 0:01:20]} 15. Qe2 {[%clk 0:02:00]}  Kh8 {[%clk 0:01:20]} 16. Rad1 {[%clk 0:02:00]}  Qc8 {[%clk 0:00:57]} 17. Nd5 {[%clk 0:01:54]}  Nb6 {[%clk 0:00:44]} 18. Ne7 {[%clk 0:01:41]}  Qe6 {[%clk 0:00:44]} 19. Bxc5 {[%clk 0:01:38]}  Qxa2 {[%clk 0:00:43]} 20. Nh4 {[%clk 0:01:08]}  Rfe8 {[%clk 0:00:16]} 21. Bxb6 {[%clk 0:00:59]}  cxb6 {[%clk 0:00:16]} 22. Rd7 {[%clk 0:01:00]}  Bc6 {[%clk 0:00:05]} 23. Rc7 {[%clk 0:00:36]}  Bd5 {[%clk 0:00:05]} 24. Nhxg6+ {[%clk 0:00:21]}  hxg6 {[%clk 0:00:05]} 25. Nxg6+ {[%clk 0:00:22]}  Kg8 {[%clk 0:00:05]} 26. Ne7+ {[%clk 0:00:23]}  Rxe7 {[%clk 0:00:03]} 27. Rxe7 {[%clk 0:00:11]}  Bf7 {[%clk 0:00:04]} 28. b3 {[%clk 0:00:08]}  Qa5 {[%clk 0:00:03]} 29. Qf3 {[%clk 0:00:07]}  Rf8 {[%clk 0:00:02]} 30. Qg3 {[%clk 0:00:07]}  Qg5 {[%clk 0:00:02]} 31. Qc7 {[%clk 0:00:07]} 1-0


[Site "https://www.chess.com"]

[Event "Titled Tuesday Blitz January 17 Early 2023"]
[White "Maximov, Dmitry"]
[Black "Papasimakopoulos, Alexandros"]
[WhiteFideId "14105659"]
[BlackFideId "4244125"]
[WhiteElo "2497"]
[BlackElo "2401"]
[Result "0-1"]
[Round "06"]
[TimeControl "180+2"]
[Date "2023.01.17"]
[WhiteClock "0:00:04"]
[BlackClock "0:00:09"]

1. e4 {[%clk 0:03:00]}  e6 {[%clk 0:02:56]} 2. d4 {[%clk 0:03:00]}  d5 {[%clk 0:02:56]} 3. e5 {[%clk 0:03:00]}  b6 {[%clk 0:02:55]} 4. c3 {[%clk 0:03:00]}  Qd7 {[%clk 0:02:56]} 5. h4 {[%clk 0:02:58]}  Ne7 {[%clk 0:02:50]} 6. h5 {[%clk 0:02:58]}  h6 {[%clk 0:02:50]} 7. Rh3 {[%clk 0:02:57]}  c5 {[%clk 0:02:50]} 8. Nf3 {[%clk 0:02:56]}  a5 {[%clk 0:02:47]} 9. a4 {[%clk 0:02:54]}  Ba6 {[%clk 0:02:46]} 10. Na3 {[%clk 0:02:52]}  Bxf1 {[%clk 0:02:46]} 11. Kxf1 {[%clk 0:02:53]}  Nbc6 {[%clk 0:02:42]} 12. Nb5 {[%clk 0:02:51]}  Nc8 {[%clk 0:02:42]} 13. Rg3 {[%clk 0:02:49]}  N6a7 {[%clk 0:02:40]} 14. Qe2 {[%clk 0:02:41]}  Nxb5 {[%clk 0:02:40]} 15. axb5 {[%clk 0:02:41]}  c4 {[%clk 0:02:32]} 16. Kg1 {[%clk 0:02:23]}  Qxb5 {[%clk 0:02:32]} 17. Nd2 {[%clk 0:02:10]}  Qd7 {[%clk 0:02:19]} 18. Nf1 {[%clk 0:02:09]}  b5 {[%clk 0:02:19]} 19. Bd2 {[%clk 0:02:05]}  Ne7 {[%clk 0:02:13]} 20. f4 {[%clk 0:01:55]}  g6 {[%clk 0:02:10]} 21. Rh3 {[%clk 0:01:54]}  a4 {[%clk 0:02:05]} 22. g4 {[%clk 0:01:52]}  Rg8 {[%clk 0:02:04]} 23. hxg6 {[%clk 0:01:45]}  fxg6 {[%clk 0:01:58]} 24. Kh2 {[%clk 0:01:37]}  Bg7 {[%clk 0:01:57]} 25. Ne3 {[%clk 0:01:35]}  Kd8 {[%clk 0:01:53]} 26. Be1 {[%clk 0:01:33]}  Kc7 {[%clk 0:01:50]} 27. Bh4 {[%clk 0:01:32]}  g5 {[%clk 0:01:51]} 28. fxg5 {[%clk 0:01:25]}  hxg5 {[%clk 0:01:51]} 29. Bg3 {[%clk 0:01:24]}  Rh8 {[%clk 0:01:51]} 30. Rh5 {[%clk 0:01:20]}  Ng6 {[%clk 0:01:50]} 31. Rh1 {[%clk 0:01:10]}  Nf4 {[%clk 0:01:44]} 32. Bxf4 {[%clk 0:01:08]}  gxf4 {[%clk 0:01:45]} 33. Ng2 {[%clk 0:01:09]}  Rxh5+ {[%clk 0:01:44]} 34. gxh5 {[%clk 0:01:08]}  Qf7 {[%clk 0:01:41]} 35. Qg4 {[%clk 0:00:59]}  Bh6 {[%clk 0:01:38]} 36. Nh4 {[%clk 0:00:57]}  a3 {[%clk 0:01:35]} 37. Rb1 {[%clk 0:00:30]}  f3 {[%clk 0:01:14]} 38. Nxf3 {[%clk 0:00:28]}  a2 {[%clk 0:01:09]} 39. Ra1 {[%clk 0:00:26]}  Qf4+ {[%clk 0:01:10]} 40. Qxf4 {[%clk 0:00:25]}  Bxf4+ {[%clk 0:01:11]} 41. Kh3 {[%clk 0:00:26]}  Bc1 {[%clk 0:01:10]} 42. Rxc1 {[%clk 0:00:22]}  a1=Q {[%clk 0:01:10]} 43. Rxa1 {[%clk 0:00:22]}  Rxa1 {[%clk 0:01:11]} 44. h6 {[%clk 0:00:20]}  Kd7 {[%clk 0:01:03]} 45. Kg4 {[%clk 0:00:19]}  Ke7 {[%clk 0:01:02]} 46. h7 {[%clk 0:00:18]}  Ra8 {[%clk 0:01:00]} 47. Kh5 {[%clk 0:00:18]}  Rf8 {[%clk 0:00:37]} 48. Ng5 {[%clk 0:00:15]}  Kd7 {[%clk 0:00:18]} 49. Kg6 {[%clk 0:00:14]}  b4 {[%clk 0:00:18]} 50. cxb4 {[%clk 0:00:13]}  Kc6 {[%clk 0:00:17]} 51. Nxe6 {[%clk 0:00:09]}  Ra8 {[%clk 0:00:17]} 52. Nf4 {[%clk 0:00:07]}  Rd8 {[%clk 0:00:14]} 53. e6 {[%clk 0:00:06]}  Kd6 {[%clk 0:00:14]} 54. Kf7 {[%clk 0:00:03]}  Rh8 {[%clk 0:00:10]} 55. e7 {[%clk 0:00:04]}  Rxh7+ {[%clk 0:00:10]} 56. Kf6 {[%clk 0:00:04]}  Rxe7 {[%clk 0:00:09]} 57. b5 {[%clk 0:00:05]}  Re4 {[%clk 0:00:07]} 58. Ng6 {[%clk 0:00:04]}  Rxd4 {[%clk 0:00:07]} 59. b6 {[%clk 0:00:05]}  Rd2 {[%clk 0:00:06]} 60. Ne7 {[%clk 0:00:03]}  Rxb2 {[%clk 0:00:06]} 61. Nf5+ {[%clk 0:00:03]}  Kc5 {[%clk 0:00:06]} 62. Ke5 {[%clk 0:00:03]}  Rxb6 {[%clk 0:00:07]} 63. Ne3 {[%clk 0:00:03]}  d4 {[%clk 0:00:06]} 64. Nf5 {[%clk 0:00:02]}  Rb8 {[%clk 0:00:06]} 65. Nxd4 {[%clk 0:00:03]}  Re8+ {[%clk 0:00:07]} 66. Ne6+ {[%clk 0:00:03]}  Rxe6+ {[%clk 0:00:07]} 67. Kxe6 {[%clk 0:00:04]}  c3 {[%clk 0:00:08]} 68. Ke5 {[%clk 0:00:04]}  c2 {[%clk 0:00:09]} 0-1


[Site "https://www.chess.com"]

[Event "Titled Tuesday Blitz January 17 Early 2023"]
[White "Belozerov, Andrei"]
[Black "Ozen, Bahadir"]
[WhiteFideId "4120213"]
[BlackFideId "6337058"]
[WhiteElo "2461"]
[BlackElo "2369"]
[Result "0-1"]
[Round "06"]
[TimeControl "180+2"]
[Date "2023.01.17"]
[WhiteClock "0:00:36"]
[BlackClock "0:01:09"]

1. d4 {[%clk 0:03:00]}  d6 {[%clk 0:03:00]} 2. e4 {[%clk 0:02:59]}  Nf6 {[%clk 0:03:00]} 3. Nc3 {[%clk 0:02:59]}  e5 {[%clk 0:03:01]} 4. Nf3 {[%clk 0:02:58]}  Nbd7 {[%clk 0:03:01]} 5. Bc4 {[%clk 0:02:58]}  Be7 {[%clk 0:03:01]} 6. a4 {[%clk 0:02:59]}  O-O {[%clk 0:03:01]} 7. O-O {[%clk 0:02:59]}  c6 {[%clk 0:03:01]} 8. Re1 {[%clk 0:02:58]}  b6 {[%clk 0:03:02]} 9. h3 {[%clk 0:02:51]}  a6 {[%clk 0:03:01]} 10. Ba2 {[%clk 0:02:41]}  Rb8 {[%clk 0:02:56]} 11. Nh4 {[%clk 0:02:38]}  exd4 {[%clk 0:02:54]} 12. Qxd4 {[%clk 0:02:38]}  Nc5 {[%clk 0:02:34]} 13. b4 {[%clk 0:02:08]}  Ne6 {[%clk 0:02:30]} 14. Qd3 {[%clk 0:01:57]}  d5 {[%clk 0:02:24]} 15. exd5 {[%clk 0:01:53]}  Nxd5 {[%clk 0:01:59]} 16. Nxd5 {[%clk 0:01:51]}  Bxh4 {[%clk 0:01:56]} 17. Nf4 {[%clk 0:01:39]}  Qf6 {[%clk 0:01:41]} 18. Nxe6 {[%clk 0:00:59]}  Qxf2+ {[%clk 0:01:15]} 19. Kh2 {[%clk 0:00:58]}  Bxe6 {[%clk 0:01:15]} 20. Bxe6 {[%clk 0:00:47]}  Qxe1 {[%clk 0:01:12]} 21. Bf5 {[%clk 0:00:40]}  Qe5+ {[%clk 0:01:12]} 22. g3 {[%clk 0:00:37]}  Qxa1 {[%clk 0:01:10]} 23. gxh4 {[%clk 0:00:36]}  Qxc1 {[%clk 0:01:09]} 0-1


[Site "https://www.chess.com"]

[Event "Titled Tuesday Blitz January 17 Early 2023"]
[White "Tsaruk, Maksim"]
[Black "UnknownMagician"]
[WhiteFideId "13511173"]
[WhiteElo "2373"]
[BlackElo "2637"]
[Result "0-1"]
[Round "06"]
[TimeControl "180+2"]
[Date "2023.01.17"]
[WhiteClock "0:00:05"]
[BlackClock "0:00:31"]

1. e4 {[%clk 0:02:55]}  c6 {[%clk 0:03:00]} 2. d4 {[%clk 0:02:55]}  d5 {[%clk 0:03:00]} 3. Nd2 {[%clk 0:02:56]}  dxe4 {[%clk 0:03:00]} 4. Nxe4 {[%clk 0:02:57]}  Nf6 {[%clk 0:03:01]} 5. Nxf6+ {[%clk 0:02:57]}  gxf6 {[%clk 0:03:01]} 6. c3 {[%clk 0:02:58]}  Bf5 {[%clk 0:03:00]} 7. Ne2 {[%clk 0:02:58]}  h5 {[%clk 0:02:56]} 8. Ng3 {[%clk 0:02:58]}  Bg6 {[%clk 0:02:56]} 9. h4 {[%clk 0:02:58]}  Qd5 {[%clk 0:02:44]} 10. Be2 {[%clk 0:02:59]}  Nd7 {[%clk 0:02:20]} 11. Bf3 {[%clk 0:02:59]}  Qe6+ {[%clk 0:02:20]} 12. Be3 {[%clk 0:03:00]}  Nb6 {[%clk 0:02:15]} 13. Qe2 {[%clk 0:02:53]}  Nc4 {[%clk 0:02:12]} 14. Bxh5 {[%clk 0:02:41]}  Nxe3 {[%clk 0:02:12]} 15. fxe3 {[%clk 0:02:38]}  Bxh5 {[%clk 0:01:55]} 16. Nxh5 {[%clk 0:02:38]}  Bh6 {[%clk 0:01:55]} 17. Nf4 {[%clk 0:02:25]}  Qe4 {[%clk 0:01:50]} 18. O-O {[%clk 0:01:44]}  e5 {[%clk 0:01:45]} 19. Rae1 {[%clk 0:01:08]}  exf4 {[%clk 0:01:44]} 20. exf4 {[%clk 0:01:02]}  Qxe2 {[%clk 0:01:43]} 21. Rxe2+ {[%clk 0:01:03]}  Kd7 {[%clk 0:01:44]} 22. Rfe1 {[%clk 0:01:01]}  Bf8 {[%clk 0:01:41]} 23. g3 {[%clk 0:00:59]}  Bd6 {[%clk 0:01:41]} 24. Kg2 {[%clk 0:00:57]}  f5 {[%clk 0:01:41]} 25. Kf3 {[%clk 0:00:55]}  Rag8 {[%clk 0:01:40]} 26. b4 {[%clk 0:00:48]}  a5 {[%clk 0:01:37]} 27. bxa5 {[%clk 0:00:46]}  Ra8 {[%clk 0:01:36]} 28. Rb1 {[%clk 0:00:45]}  Kc7 {[%clk 0:01:33]} 29. Reb2 {[%clk 0:00:45]}  Rhb8 {[%clk 0:01:32]} 30. c4 {[%clk 0:00:32]}  Rxa5 {[%clk 0:01:27]} 31. c5 {[%clk 0:00:32]}  Be7 {[%clk 0:01:27]} 32. Rd2 {[%clk 0:00:21]}  Ra3+ {[%clk 0:01:24]} 33. Rb3 {[%clk 0:00:21]}  Rxb3+ {[%clk 0:01:23]} 34. axb3 {[%clk 0:00:22]}  Rd8 {[%clk 0:01:23]} 35. g4 {[%clk 0:00:06]}  fxg4+ {[%clk 0:01:22]} 36. Kxg4 {[%clk 0:00:07]}  Bxc5 {[%clk 0:01:22]} 37. Kf5 {[%clk 0:00:05]}  Rxd4 {[%clk 0:01:11]} 38. Rg2 {[%clk 0:00:02]}  Bd6 {[%clk 0:01:10]} 39. Rg4 {[%clk 0:00:02]}  b5 {[%clk 0:01:05]} 40. h5 {[%clk 0:00:02]}  Rd5+ {[%clk 0:01:02]} 41. Kf6 {[%clk 0:00:03]}  Rxh5 {[%clk 0:01:02]} 42. f5 {[%clk 0:00:03]}  Rh7 {[%clk 0:01:00]} 43. Re4 {[%clk 0:00:02]}  c5 {[%clk 0:00:58]} 44. Re8 {[%clk 0:00:02]}  c4 {[%clk 0:00:57]} 45. bxc4 {[%clk 0:00:02]}  bxc4 {[%clk 0:00:58]} 46. Re4 {[%clk 0:00:03]}  Kd7 {[%clk 0:00:48]} 47. Rxc4 {[%clk 0:00:03]}  Be7+ {[%clk 0:00:48]} 48. Ke5 {[%clk 0:00:04]}  f6+ {[%clk 0:00:48]} 49. Kd5 {[%clk 0:00:04]}  Rh5 {[%clk 0:00:48]} 50. Rf4 {[%clk 0:00:04]}  Bd6 {[%clk 0:00:48]} 51. Rf1 {[%clk 0:00:05]}  Be5 {[%clk 0:00:48]} 52. Rb1 {[%clk 0:00:03]}  Rxf5 {[%clk 0:00:48]} 53. Rb7+ {[%clk 0:00:03]}  Ke8 {[%clk 0:00:48]} 54. Ke6 {[%clk 0:00:04]}  Rf1 {[%clk 0:00:45]} 55. Ra7 {[%clk 0:00:04]}  Kd8 {[%clk 0:00:45]} 56. Rd7+ {[%clk 0:00:03]}  Kc8 {[%clk 0:00:45]} 57. Rd5 {[%clk 0:00:04]}  Rc1 {[%clk 0:00:45]} 58. Rd2 {[%clk 0:00:03]}  Rc6+ {[%clk 0:00:46]} 59. Kf5 {[%clk 0:00:03]}  Rc7 {[%clk 0:00:46]} 60. Rd3 {[%clk 0:00:04]}  Rd7 {[%clk 0:00:46]} 61. Rb3 {[%clk 0:00:03]}  Kd8 {[%clk 0:00:46]} 62. Ke6 {[%clk 0:00:04]}  Rd6+ {[%clk 0:00:47]} 63. Kf5 {[%clk 0:00:04]}  Ke7 {[%clk 0:00:47]} 64. Rb7+ {[%clk 0:00:05]}  Rd7 {[%clk 0:00:47]} 65. Rb6 {[%clk 0:00:05]}  Kf7 {[%clk 0:00:44]} 66. Rb1 {[%clk 0:00:04]}  Rc7 {[%clk 0:00:43]} 67. Rh1 {[%clk 0:00:03]}  Kg7 {[%clk 0:00:43]} 68. Rg1+ {[%clk 0:00:03]}  Kf8 {[%clk 0:00:43]} 69. Rh1 {[%clk 0:00:04]}  Rg7 {[%clk 0:00:44]} 70. Ke6 {[%clk 0:00:04]}  Re7+ {[%clk 0:00:43]} 71. Kf5 {[%clk 0:00:04]}  Bb2 {[%clk 0:00:43]} 72. Rh8+ {[%clk 0:00:04]}  Kg7 {[%clk 0:00:43]} 73. Rh2 {[%clk 0:00:04]}  Re5+ {[%clk 0:00:43]} 74. Kf4 {[%clk 0:00:05]}  Ba3 {[%clk 0:00:42]} 75. Ra2 {[%clk 0:00:04]}  Bd6 {[%clk 0:00:42]} 76. Kf3 {[%clk 0:00:04]}  Kg6 {[%clk 0:00:42]} 77. Rg2+ {[%clk 0:00:04]}  Kf5 {[%clk 0:00:42]} 78. Rg8 {[%clk 0:00:03]}  Bc5 {[%clk 0:00:42]} 79. Rd8 {[%clk 0:00:04]}  Be3 {[%clk 0:00:41]} 80. Rh8 {[%clk 0:00:03]}  Bg5 {[%clk 0:00:42]} 81. Rc8 {[%clk 0:00:02]}  Re3+ {[%clk 0:00:42]} 82. Kf2 {[%clk 0:00:03]}  Re4 {[%clk 0:00:41]} 83. Rc5+ {[%clk 0:00:03]}  Kg4 {[%clk 0:00:41]} 84. Rc6 {[%clk 0:00:03]}  f5 {[%clk 0:00:41]} 85. Rg6 {[%clk 0:00:03]}  f4 {[%clk 0:00:40]} 86. Rc6 {[%clk 0:00:03]}  Ra4 {[%clk 0:00:39]} 87. Kf1 {[%clk 0:00:04]}  Kf3 {[%clk 0:00:38]} 88. Rc3+ {[%clk 0:00:04]}  Kg4 {[%clk 0:00:38]} 89. Rc2 {[%clk 0:00:03]}  Bh4 {[%clk 0:00:38]} 90. Rg2+ {[%clk 0:00:03]}  Kf3 {[%clk 0:00:39]} 91. Rf2+ {[%clk 0:00:04]}  Ke4 {[%clk 0:00:36]} 92. Re2+ {[%clk 0:00:04]}  Kf5 {[%clk 0:00:36]} 93. Rc2 {[%clk 0:00:04]}  f3 {[%clk 0:00:31]} 94. Rc1 {[%clk 0:00:04]}  Kg4 {[%clk 0:00:29]} 95. Kg1 {[%clk 0:00:05]}  Kg3 {[%clk 0:00:29]} 96. Kh1 {[%clk 0:00:05]}  Ra2 {[%clk 0:00:29]} 97. Rg1+ {[%clk 0:00:05]}  Kh3 {[%clk 0:00:29]} 98. Rd1 {[%clk 0:00:03]}  Rh2+ {[%clk 0:00:29]} 99. Kg1 {[%clk 0:00:03]}  f2+ {[%clk 0:00:30]} 100. Kf1 {[%clk 0:00:04]}  Rh1+ {[%clk 0:00:31]} 101. Ke2 {[%clk 0:00:05]}  Rxd1 {[%clk 0:00:31]} 0-1


[Site "https://www.chess.com"]

[Event "Titled Tuesday Blitz January 17 Early 2023"]
[White "Borges Feria, Yasel"]
[Black "Mammadzada, Gunay"]
[WhiteFideId "3504921"]
[BlackFideId "13403729"]
[WhiteElo "2439"]
[BlackElo "2449"]
[Result "1-0"]
[Round "06"]
[TimeControl "180+2"]
[Date "2023.01.17"]
[WhiteClock "0:00:12"]
[BlackClock "0:00:05"]

1. d4 {[%clk 0:03:00]}  d5 {[%clk 0:02:59]} 2. c4 {[%clk 0:03:00]}  c6 {[%clk 0:02:59]} 3. Nf3 {[%clk 0:03:00]}  Nf6 {[%clk 0:02:59]} 4. Qb3 {[%clk 0:02:55]}  dxc4 {[%clk 0:02:55]} 5. Qxc4 {[%clk 0:02:55]}  Bf5 {[%clk 0:02:55]} 6. g3 {[%clk 0:02:55]}  e6 {[%clk 0:02:56]} 7. Bg2 {[%clk 0:02:55]}  Be7 {[%clk 0:02:57]} 8. O-O {[%clk 0:02:55]}  O-O {[%clk 0:02:57]} 9. Rd1 {[%clk 0:02:55]}  Nbd7 {[%clk 0:02:54]} 10. e3 {[%clk 0:02:56]}  Qa5 {[%clk 0:02:51]} 11. Qe2 {[%clk 0:02:46]}  Ne4 {[%clk 0:02:45]} 12. Nfd2 {[%clk 0:02:26]}  Ndf6 {[%clk 0:02:41]} 13. Nb3 {[%clk 0:02:20]}  Qd5 {[%clk 0:01:36]} 14. f3 {[%clk 0:02:16]}  Nd6 {[%clk 0:01:36]} 15. Nc3 {[%clk 0:01:55]}  Qc4 {[%clk 0:01:36]} 16. e4 {[%clk 0:01:55]}  Qxe2 {[%clk 0:01:32]} 17. Nxe2 {[%clk 0:01:56]}  Nfxe4 {[%clk 0:01:32]} 18. fxe4 {[%clk 0:01:55]}  Nxe4 {[%clk 0:01:33]} 19. Nc3 {[%clk 0:01:45]}  Nf6 {[%clk 0:01:30]} 20. Na5 {[%clk 0:01:40]}  Bg4 {[%clk 0:01:20]} 21. Rf1 {[%clk 0:01:15]}  Nd5 {[%clk 0:01:14]} 22. h3 {[%clk 0:00:55]}  Bh5 {[%clk 0:01:05]} 23. Nxd5 {[%clk 0:00:41]}  cxd5 {[%clk 0:01:04]} 24. Bf4 {[%clk 0:00:40]}  g5 {[%clk 0:00:32]} 25. Be3 {[%clk 0:00:36]}  Bg6 {[%clk 0:00:31]} 26. Rfc1 {[%clk 0:00:30]}  Rab8 {[%clk 0:00:20]} 27. a3 {[%clk 0:00:28]}  h6 {[%clk 0:00:20]} 28. Rc3 {[%clk 0:00:27]}  Bd8 {[%clk 0:00:20]} 29. Nb3 {[%clk 0:00:27]}  b6 {[%clk 0:00:18]} 30. Rac1 {[%clk 0:00:27]}  Bf5 {[%clk 0:00:13]} 31. g4 {[%clk 0:00:26]}  Bg6 {[%clk 0:00:13]} 32. Rc8 {[%clk 0:00:25]}  Bf6 {[%clk 0:00:12]} 33. Rxb8 {[%clk 0:00:25]}  Rxb8 {[%clk 0:00:12]} 34. Rc7 {[%clk 0:00:23]}  a5 {[%clk 0:00:13]} 35. Nd2 {[%clk 0:00:22]}  b5 {[%clk 0:00:12]} 36. Nf3 {[%clk 0:00:22]}  b4 {[%clk 0:00:12]} 37. a4 {[%clk 0:00:23]}  b3 {[%clk 0:00:12]} 38. Rc5 {[%clk 0:00:21]}  Bd8 {[%clk 0:00:10]} 39. Bf1 {[%clk 0:00:19]}  Be4 {[%clk 0:00:06]} 40. Ne5 {[%clk 0:00:18]}  Be7 {[%clk 0:00:03]} 41. Rc6 {[%clk 0:00:10]}  f6 {[%clk 0:00:02]} 42. Nd3 {[%clk 0:00:09]}  Kf7 {[%clk 0:00:03]} 43. Nc5 {[%clk 0:00:09]}  Bxc5 {[%clk 0:00:03]} 44. Rxc5 {[%clk 0:00:10]}  Rb4 {[%clk 0:00:03]} 45. Bb5 {[%clk 0:00:10]}  e5 {[%clk 0:00:02]} 46. dxe5 {[%clk 0:00:11]}  fxe5 {[%clk 0:00:03]} 47. Kf2 {[%clk 0:00:12]}  Ke6 {[%clk 0:00:04]} 48. Ke1 {[%clk 0:00:12]}  d4 {[%clk 0:00:05]} 49. Bd2 {[%clk 0:00:12]}  Kd6 {[%clk 0:00:03]} 50. Bxb4 {[%clk 0:00:12]}  axb4 {[%clk 0:00:03]} 51. Rc8 {[%clk 0:00:13]}  Bd5 {[%clk 0:00:03]} 52. Kd2 {[%clk 0:00:13]}  Ke6 {[%clk 0:00:04]} 53. Bc4 {[%clk 0:00:12]}  e4 {[%clk 0:00:04]} 54. Bxd5+ {[%clk 0:00:12]}  Kxd5 {[%clk 0:00:05]} 55. Rd8+ {[%clk 0:00:12]} 1-0


[Site "https://www.chess.com"]

[Event "Titled Tuesday Blitz January 17 Early 2023"]
[White "Sadhwani, Raunak"]
[Black "Bodnaruk, Anastasia"]
[WhiteFideId "35093487"]
[BlackFideId "4181751"]
[WhiteElo "2627"]
[BlackElo "2350"]
[Result "1-0"]
[Round "06"]
[TimeControl "180+2"]
[Date "2023.01.17"]
[WhiteClock "0:01:27"]
[BlackClock "0:00:01"]

1. b3 {[%clk 0:03:00]}  Nf6 {[%clk 0:02:56]} 2. Bb2 {[%clk 0:03:01]}  e6 {[%clk 0:02:56]} 3. Nf3 {[%clk 0:03:02]}  d5 {[%clk 0:02:55]} 4. g3 {[%clk 0:03:03]}  c5 {[%clk 0:02:55]} 5. Bg2 {[%clk 0:03:03]}  Nc6 {[%clk 0:02:55]} 6. O-O {[%clk 0:03:04]}  Be7 {[%clk 0:02:54]} 7. d4 {[%clk 0:03:03]}  O-O {[%clk 0:02:41]} 8. dxc5 {[%clk 0:03:03]}  Bxc5 {[%clk 0:02:41]} 9. Nbd2 {[%clk 0:03:04]}  Re8 {[%clk 0:02:32]} 10. c4 {[%clk 0:03:04]}  d4 {[%clk 0:02:29]} 11. a3 {[%clk 0:03:00]}  a5 {[%clk 0:02:27]} 12. Ng5 {[%clk 0:02:54]}  e5 {[%clk 0:02:18]} 13. Nde4 {[%clk 0:02:54]}  Nxe4 {[%clk 0:02:17]} 14. Nxe4 {[%clk 0:02:55]}  Bf8 {[%clk 0:02:18]} 15. e3 {[%clk 0:02:41]}  f5 {[%clk 0:02:12]} 16. Nd2 {[%clk 0:02:42]}  d3 {[%clk 0:01:48]} 17. Bd5+ {[%clk 0:02:40]}  Kh8 {[%clk 0:01:48]} 18. e4 {[%clk 0:02:40]}  Bc5 {[%clk 0:01:39]} 19. exf5 {[%clk 0:02:34]}  Bxf5 {[%clk 0:01:35]} 20. Ne4 {[%clk 0:02:35]}  Bd4 {[%clk 0:01:16]} 21. Bxd4 {[%clk 0:02:32]}  exd4 {[%clk 0:00:43]} 22. Qxd3 {[%clk 0:02:31]}  Ne5 {[%clk 0:00:42]} 23. Qd1 {[%clk 0:02:29]}  Qb6 {[%clk 0:00:21]} 24. c5 {[%clk 0:02:22]}  Qh6 {[%clk 0:00:21]} 25. Nd6 {[%clk 0:02:22]}  Bg4 {[%clk 0:00:18]} 26. Qxd4 {[%clk 0:01:49]}  Qf6 {[%clk 0:00:13]} 27. Qf4 {[%clk 0:01:33]}  Rf8 {[%clk 0:00:04]} 28. Qxf6 {[%clk 0:01:30]}  gxf6 {[%clk 0:00:04]} 29. Bxb7 {[%clk 0:01:31]}  Rad8 {[%clk 0:00:02]} 30. b4 {[%clk 0:01:31]}  Kg7 {[%clk 0:00:01]} 31. f3 {[%clk 0:01:29]}  Be6 {[%clk 0:00:01]} 32. Rfe1 {[%clk 0:01:27]} 1-0


[Site "https://www.chess.com"]

[Event "Titled Tuesday Blitz January 17 Early 2023"]
[White "Divya Deshmukh"]
[Black "Remizov, Yaroslav"]
[WhiteFideId "35006916"]
[BlackFideId "34134015"]
[WhiteElo "2372"]
[BlackElo "2421"]
[Result "0-1"]
[Round "06"]
[TimeControl "180+2"]
[Date "2023.01.17"]
[WhiteClock "0:00:05"]
[BlackClock "0:00:33"]

1. e4 {[%clk 0:01:41]}  c5 {[%clk 0:02:59]} 2. Nf3 {[%clk 0:01:40]}  Nc6 {[%clk 0:02:59]} 3. d4 {[%clk 0:01:40]}  cxd4 {[%clk 0:02:59]} 4. Nxd4 {[%clk 0:01:41]}  Nf6 {[%clk 0:03:00]} 5. Nc3 {[%clk 0:01:41]}  e6 {[%clk 0:03:00]} 6. Nxc6 {[%clk 0:01:40]}  bxc6 {[%clk 0:03:01]} 7. e5 {[%clk 0:01:40]}  Nd5 {[%clk 0:03:01]} 8. Ne4 {[%clk 0:01:41]}  Qc7 {[%clk 0:03:00]} 9. f4 {[%clk 0:01:37]}  Qb6 {[%clk 0:02:55]} 10. c4 {[%clk 0:01:36]}  Bb4+ {[%clk 0:02:54]} 11. Ke2 {[%clk 0:01:36]}  f5 {[%clk 0:02:54]} 12. exf6 {[%clk 0:01:32]}  Nxf6 {[%clk 0:02:54]} 13. Be3 {[%clk 0:01:32]}  Qd8 {[%clk 0:02:53]} 14. Nd6+ {[%clk 0:01:32]}  Bxd6 {[%clk 0:02:52]} 15. Qxd6 {[%clk 0:01:33]}  Bb7 {[%clk 0:02:52]} 16. Kd1 {[%clk 0:01:32]}  c5 {[%clk 0:02:43]} 17. Qxc5 {[%clk 0:01:27]}  Rc8 {[%clk 0:02:40]} 18. Qxa7 {[%clk 0:01:25]}  Be4 {[%clk 0:02:37]} 19. Be2 {[%clk 0:01:22]}  O-O {[%clk 0:02:35]} 20. Ke1 {[%clk 0:01:17]}  d5 {[%clk 0:02:30]} 21. Qd4 {[%clk 0:01:17]}  Qe7 {[%clk 0:01:56]} 22. c5 {[%clk 0:01:12]}  Nd7 {[%clk 0:01:49]} 23. b4 {[%clk 0:01:04]}  e5 {[%clk 0:01:49]} 24. fxe5 {[%clk 0:01:03]}  Nxe5 {[%clk 0:01:46]} 25. b5 {[%clk 0:01:00]}  Rfe8 {[%clk 0:01:00]} 26. Kd2 {[%clk 0:00:51]}  Rcd8 {[%clk 0:00:43]} 27. Kc3 {[%clk 0:00:45]}  Qa7 {[%clk 0:00:41]} 28. a4 {[%clk 0:00:40]}  Nc4 {[%clk 0:00:34]} 29. Bf4 {[%clk 0:00:08]}  Qa5+ {[%clk 0:00:33]} 30. Kb3 {[%clk 0:00:08]}  Bc2+ {[%clk 0:00:33]} 31. Kxc2 {[%clk 0:00:07]}  Rxe2+ {[%clk 0:00:34]} 32. Kd3 {[%clk 0:00:05]}  Rd2+ {[%clk 0:00:33]} 0-1


[Site "https://www.chess.com"]